fUSD/lending_fUSD_20251231
["ID","MTS","AMOUNT","RATE_DAILY","PERIOD"]
[400190715,1767181842144,-150.0,0.00016754,2]
[400190717,1767181842153,-300.0,0.00016778,2]
[400190719,1767181842163,-300.0,0.00016784,2]
[400190721,1767181842172,-300.0,0.00016785,2]
[400190723,1767181842183,-300.0,0.0001679,2]
[400190725,1767181842192,-300.0,0.00016793,2]
[400190727,1767181842201,-200.0,0.00016809,2]
[400190729,1767181842211,-200.0,0.00016809,2]
[400190731,1767181842220,-150.0,0.00016809,2]
[400190733,1767181842230,-300.0,0.00016812,2]
[400190735,1767181842239,-300.0,0.00016834,2]
[400190737,1767181842248,-300.0,0.00016839,2]
[400190739,1767181842257,-300.0,0.00016861,2]
[400190741,1767181842269,-300.0,0.00016862,2]
[400190743,1767181842279,-150.0,0.00016863,2]
[400190745,1767181842288,-200.0,0.00016864,2]
[400190747,1767181842298,-10000.0,0.000169,2]
[400190749,1767181842307,-3143.59351147,0.000169,2]
[400190751,1767181842315,-168.82234316,0.000169,2]
[400190752,1767181842325,-221.31268556,0.000169,2]
[400190753,1767181842334,-377.28874825,0.000169,2]
[400190754,1767181842343,-179.69793141,0.000169,2]
[400190755,1767181842352,-1784.35669464,0.000169,2]
[400190756,1767181842361,-201.36386948,0.000169,2]
[400190757,1767181842370,-5805.6450595,0.000169,2]
[400190758,1767181842380,-865.89542107,0.000169,2]
[400190759,1767181842390,-500.0,0.000169,2]
[400190760,1767181842399,-500.0,0.000169,2]
[400190761,1767181842409,-500.0,0.000169,2]
[400190762,1767181842418,-500.0,0.000169,2]
[400190764,1767181842427,-500.0,0.000169,2]
[400190765,1767181842437,-326.1895363,0.000169,2]
[400190767,1767181842446,-6264.0,0.000169,2]
[400190769,1767181842456,-300.0,0.00016911,2]
[400190771,1767181842466,-171.0,0.00016918,2]
[400190773,1767181842475,-300.0,0.00016919,2]
[400190776,1767181842485,-300.0,0.00016921,2]
[400190778,1767181842495,-300.0,0.00016929,2]
[400190780,1767181842504,-166.66,0.0001694,2]
[400190782,1767181842514,-300.0,0.0001695,2]
[400190784,1767181842523,-300.0,0.00016951,2]
[400190786,1767181842532,-314.89987668,0.00016961,2]
[400190788,1767181842542,-300.0,0.00016967,2]
[400190790,1767181842551,-500.0,0.00016973,2]
[400190792,1767181842560,-500.0,0.00016973,2]
[400190794,1767181842569,-285.58272602,0.00016973,2]
[400190796,1767181842578,-500.0,0.00016973,2]
[400190798,1767181842587,-608.88646919,0.00016973,2]
[400190800,1767181842597,-325.08323726,0.00016973,2]
[400190802,1767181842606,-500.0,0.00016973,2]
[400190804,1767181842616,-500.0,0.00016973,2]
[400190806,1767181842625,-500.0,0.00016973,2]
[400190808,1767181842635,-500.0,0.00016973,2]
[400190810,1767181842644,-500.0,0.00016973,2]
[400190812,1767181842653,-500.0,0.00016973,2]
[400190814,1767181842663,-500.0,0.00016973,2]
[400190816,1767181842672,-502.3109213,0.00016973,2]
[400190818,1767181842684,-500.0,0.00016973,2]
[400190820,1767181842693,-500.0,0.00016973,2]
[400190822,1767181842702,-500.0,0.00016973,2]
[400190824,1767181842711,-500.0,0.00016973,2]
[400190826,1767181842721,-500.0,0.00016973,2]
[400190828,1767181842731,-500.0,0.00016973,2]
[400190830,1767181842740,-576.5906538,0.00016973,2]
[400190832,1767181842750,-500.0,0.00016973,2]
[400190834,1767181842759,-500.0,0.00016973,2]
[400190836,1767181842768,-500.0,0.00016973,2]
[400190839,1767181842777,-500.0,0.00016973,2]
[400190842,1767181842787,-500.0,0.00016973,2]
[400190845,1767181842797,-500.0,0.00016973,2]
[400190847,1767181842807,-500.0,0.00016973,2]
[400190850,1767181842817,-427.40368537,0.00016973,2]
[400190853,1767181842829,-500.0,0.00016973,2]
[400190856,1767181842839,-500.0,0.00016973,2]
[400190859,1767181842849,-500.0,0.00016973,2]
[400190863,1767181842859,-500.0,0.00016973,2]
[400190866,1767181842868,-160.40600151,0.00016973,2]
[400190869,1767181842878,-500.0,0.00016973,2]
[400190871,1767181842888,-544.82078293,0.00016973,2]
[400190874,1767181842897,-500.0,0.00016973,2]
[400190877,1767181842908,-500.0,0.00016973,2]
[400190880,1767181842917,-500.0,0.00016973,2]
[400190883,1767181842927,-500.0,0.00016973,2]
[400190885,1767181842936,-568.37391692,0.00016973,2]
[400190887,1767181842945,-500.0,0.00016973,2]
[400190889,1767181842955,-579.68523701,0.00016973,2]
[400190891,1767181842964,-500.0,0.00016973,2]
[400190893,1767181842973,-500.0,0.00016973,2]
[400190895,1767181842983,-181.96938365,0.00016973,2]
[400190897,1767181842993,-500.0,0.00016973,2]
[400190899,1767181843002,-500.0,0.00016973,2]
[400190901,1767181843011,-500.0,0.00016973,2]
[400190903,1767181843021,-500.0,0.00016973,2]
[400190905,1767181843030,-500.0,0.00016973,2]
[400190907,1767181843039,-500.0,0.00016973,2]
[400190909,1767181843048,-500.0,0.00016973,2]
[400190911,1767181843061,-500.0,0.00016973,2]
[400190914,1767181843071,-500.0,0.00016973,2]
[400190916,1767181843080,-150.0,0.00016973,2]
[400190917,1767181843090,-300.0,0.00016976,2]
[400190919,1767181843099,-1202.9600402,0.00016979,2]
[400190921,1767181843108,-150.0,0.00016979,2]
[400190924,1767181843118,-164.66,0.00016979,2]
[400190926,1767181843127,-4334.2812699,0.00016983,2]
[400190928,1767181843136,-1070.2656691,0.00016983,2]
[400190930,1767181843146,-151694.1155991,0.00016983,2]
[400190931,1767181843155,-150.0,0.00016986,2]
[400190933,1767181843164,-144259.012644,0.00016989,2]
[400190936,1767181843173,-164.66,0.0001699,2]
[400190937,1767181843183,-41323.5939255,0.00016992,2]
[400190940,1767181843192,-300.0,0.00016996,2]
[400190942,1767181843201,-43273.09713837,0.00016999,2]
[400190944,1767181843211,-300.0,0.00016999,2]
[400190946,1767181843220,-300.0,0.00016999,2]
[400190948,1767181843229,-300.0,0.00016999,2]
[400190950,1767181843239,-314.17525176,0.00016999,2]
[400190952,1767181843248,-300.0,0.00016999,2]
[400190954,1767181843257,-666.0,0.00016999,2]
[400190956,1767181843266,-300.0,0.00016999,2]
[400190958,1767181843275,-150.0,0.00016999,2]
[400190960,1767181843284,-300.0,0.00016999,2]
[400190962,1767181843294,-328953.1582581,0.00017,2]
[400191008,1767181843709,-475.70768933,0.00017,2]
[400191091,1767181844489,-565.0,0.00016559,2]
[400191093,1767181844499,-635.5546418,0.00017,2]
[400191099,1767181844543,-3439.16975584,0.00017,2]
[400191106,1767181844597,-853073.77039499,0.00017,2]
[400191118,1767181844703,-534.74828065,0.00017,2]
[400191120,1767181844715,-14158.8101751,0.00017,2]
[400191246,1767181860878,500.0,0.00043185,120]
[400191247,1767181865809,151.0,0.00043185,120]
[400191248,1767181866159,151.0,0.00043185,120]
[400191249,1767181866761,151.0,0.00043185,120]
[400191250,1767181866953,500.0,0.00012953,2]
[400191251,1767181867016,500.0,0.00012953,2]
[400191252,1767181867057,354.13497166,0.00012953,2]
[400191253,1767181867417,151.0,0.00043185,120]
[400191254,1767181868044,151.0,0.00043185,120]
[400191255,1767181868669,151.0,0.00043185,120]
[400191256,1767181869740,151.0,0.00043185,120]
[400191257,1767181870366,151.0,0.00043185,120]
[400191258,1767181870985,151.0,0.00043185,120]
[400191259,1767181871578,151.0,0.00043185,120]
[400191260,1767181872181,151.0,0.00043185,120]
[400191261,1767181872794,151.0,0.00043185,120]
[400191262,1767181873539,500.0,0.00043185,120]
[400191263,1767181874150,500.0,0.00043185,120]
[400191264,1767181874759,500.0,0.00043185,120]
[400191265,1767181875361,500.0,0.00043185,120]
[400191266,1767181875972,500.0,0.00043185,120]
[400191267,1767181876641,500.0,0.00043185,120]
[400191268,1767181877252,500.0,0.00043185,120]
[400191269,1767181877872,500.0,0.00043185,120]
[400191270,1767181878468,500.0,0.00043185,120]
[400191271,1767181879075,500.0,0.00043185,120]
[400191272,1767181879699,500.0,0.00043185,120]
[400191273,1767181879869,500.0,0.00043185,120]
[400191274,1767181880318,500.0,0.00043185,120]
[400191275,1767181880951,500.0,0.00043185,120]
[400191276,1767181881590,500.0,0.00043185,120]
[400191277,1767181882186,500.0,0.00043185,120]
[400191278,1767181882787,500.0,0.00043185,120]
[400191279,1767181883424,500.0,0.00043185,120]
[400191280,1767181884059,500.0,0.00043185,120]
[400191281,1767181884664,500.0,0.00043185,120]
[400191282,1767181885300,500.0,0.00043185,120]
[400191283,1767181885915,500.0,0.00043185,120]
[400191284,1767181886549,500.0,0.00043185,120]
[400191285,1767181887160,500.0,0.00043185,120]
[400191286,1767181907425,500.0,0.00012953,2]
[400191287,1767181907463,158.69026474,0.00012953,2]
[400191288,1767181909352,798.59662982,0.00012953,2]
[400191289,1767181909398,798.59662982,0.00012953,2]
[400191290,1767181909441,798.59662982,0.00012953,2]
[400191291,1767181909483,798.59662982,0.00012953,2]
[400191292,1767181909525,798.59662982,0.00012953,2]
[400191293,1767181909569,798.59662982,0.00012953,2]
[400191294,1767181909613,798.59662982,0.00012953,2]
[400191295,1767181909659,798.59662982,0.00012953,2]
[400191296,1767181909704,798.59662982,0.00012953,2]
[400191297,1767181909748,798.59662982,0.00012953,2]
[400191298,1767181909794,1.2184654,0.00012953,2]
[400191299,1767181914815,-437.45409252,0.00012953,2]
[400191300,1767181918558,-185.69,0.00012953,2]
[400191301,1767181923000,-300.0,0.00012935,2]
[400191302,1767181925766,-200.0,0.00012935,2]
[400191303,1767181925796,-174.2340719,0.00012953,2]
[400191304,1767181925823,-412.29400612,0.00012953,2]
[400191305,1767181927148,-229.22521654,0.00012953,2]
[400191306,1767181927615,200.0,0.00043185,120]
[400191307,1767181928228,200.0,0.00043185,120]
[400191308,1767181929113,-157.07740716,0.00012953,2]
[400191309,1767181929141,-142.92259284,0.00012953,2]
[400191310,1767181931080,500.0,0.00043185,120]
[400191311,1767181931749,500.0,0.00043185,120]
[400191312,1767181931927,-238.3378692,0.00012953,2]
[400191313,1767181933545,200.0,0.00043185,120]
[400191314,1767181934144,200.0,0.00043185,120]
[400191315,1767181934378,-417.33616778,0.00012953,2]
[400191316,1767181934404,-95.03456748,0.00012953,2]
[400191317,1767181936592,-224.27345533,0.00012953,2]
[400191318,1767181939895,200.0,0.00043185,120]
[400191320,1767181941109,-403.23602683,0.00012953,2]
[400191321,1767181941341,4295.07,7.995e-05,2]
[400191322,1767181941538,4295.07,8.416e-05,2]
[400191323,1767181941752,1409.87,8.836e-05,2]
[400191324,1767181941775,2885.2,8.836e-05,2]
[400191325,1767181941953,4295.07,9.257e-05,2]
[400191326,1767181942187,2819.74,9.678e-05,2]
[400191327,1767181942210,1475.33,9.678e-05,2]
[400191328,1767181942382,4295.07,0.00010099,2]
[400191329,1767181942481,-76.05258018,0.00012953,2]
[400191330,1767181942507,-177.1060379,0.00012953,2]
[400191331,1767181942601,4229.61,0.00010519,2]
[400191332,1767181942624,65.46,0.00010519,2]
[400191333,1767181942847,4295.07,0.0001094,2]
[400191334,1767181943050,4295.07,0.00011361,2]
[400191335,1767181943263,1344.41,0.00011782,2]
[400191336,1767181943286,2950.66,0.00011782,2]
[400191337,1767181943467,4295.07,0.00012202,2]
[400191338,1767181943682,2754.28,0.00012623,2]
[400191339,1767181943705,1540.79,0.00012623,2]
[400191340,1767181944931,-183.97002739,0.00012953,2]
[400191341,1767181946351,-178.1894853,0.00012953,2]
[400191342,1767181948429,-250.0,0.00012953,2]
[400191343,1767181949931,-9.33107923,0.00012953,2]
[400191344,1767181949957,-212.59252486,0.00012953,2]
[400191345,1767181951394,-196.34804293,0.00012953,2]
[400191346,1767181952808,-369.77900279,0.00012953,2]
[400191347,1767181954250,-19.87705924,0.00012953,2]
[400191348,1767181954279,-272.12198708,0.00012953,2]
[400191349,1767181957739,-239.69824731,0.00012953,2]
[400191350,1767181959641,-286.77639543,0.00012953,2]
[400191351,1767181959678,-39.38657316,0.00012953,2]
[400191352,1767181959845,5855.8022643,0.00012854,2]
[400191353,1767181961087,-198.16501142,0.00012888,2]
[400191354,1767181965148,-176.88943954,0.00012953,2]
[400191355,1767181966736,-166.66,0.00012953,2]
[400191356,1767181969506,-240.27207393,0.00012953,2]
[400191357,1767181972460,-172.16790242,0.00012953,2]
[400191358,1767181974026,-3.22064077,0.00012953,2]
[400191359,1767181974061,-197.05912056,0.00012953,2]
[400191360,1767181976559,-205.34122303,0.00012888,2]
[400191361,1767181981054,-198.33595259,0.00012888,2]
[400191362,1767181982483,-803.44715269,0.00012888,2]
[400191363,1767181986096,-173.00309202,0.00012888,2]
[400191364,1767181988213,-168.26156098,0.00012888,2]
[400191365,1767181990734,-153.72,0.00012888,2]
[400191366,1767181992399,-163.14635088,0.00012888,2]
[400191367,1767181995547,-177.91265073,0.00012888,2]
[400191368,1767182051086,553.99899658,0.00012855,2]
[400191369,1767182052182,179.32,0.00012333,2]
[400191370,1767182064840,-190.91840058,0.00012887,2]
[400191371,1767182075220,236.62093498,0.00012855,2]
[400191373,1767182127525,1633.47780414,0.00012855,2]
[400191374,1767182127550,59.22177582,0.00012855,2]
[400191376,1767182163857,500.0,0.00043185,120]
[400191380,1767182191136,369.33266438,0.00012855,2]
[400191389,1767182292141,160.0,0.00043185,30]
[400191390,1767182292207,160.0,0.00043185,30]
[400191391,1767182292414,160.0,0.00043185,30]
[400191392,1767182292456,160.0,0.00043185,30]
[400191393,1767182292538,231.8,0.00043185,30]
[400191394,1767182292579,160.0,0.00043185,30]
[400191395,1767182292619,160.0,0.00043185,30]
[400191396,1767182292676,160.0,0.00043185,30]
[400191397,1767182292752,160.0,0.00043185,30]
[400191398,1767182292828,160.0,0.00043185,30]
[400191399,1767182292897,160.0,0.00043185,30]
[400191400,1767182292980,168.2,0.00043185,30]
[400191405,1767182331410,246.22177626,0.00012855,2]
[400191407,1767182348506,517.88319912,0.00015,7]
[400191408,1767182375213,943.07805345,0.00012855,2]
[400191410,1767182461201,500.0,0.00043182,120]
[400191411,1767182471730,164.14785084,0.00012855,2]
[400191412,1767182493421,995.732,0.00012695,2]
[400191413,1767182513761,1523.429622,0.00012855,2]
[400191414,1767182560307,1036.6218,0.00012854,2]
[400191415,1767182612036,164.14785083,0.00012855,2]
[400191425,1767182636163,1044.7741,0.00012854,2]
[400191429,1767182666942,177.2397094,0.00012851,2]
[400191430,1767182671939,177.23970939,0.00012852,2]
[400191438,1767182742294,164.14785083,0.00012855,2]
[400191439,1767182760736,500.0,0.00043182,120]
[400191461,1767182885562,942.03280815,0.00012855,2]
[400191462,1767182899978,1371.0866598,0.00012855,2]
[400191463,1767182981760,621.55576885,0.00012852,2]
[400191464,1767182981787,10000.01,0.00012852,2]
[400191465,1767182981815,10000.01,0.00012852,2]
[400191466,1767182981842,10000.01,0.00012852,2]
[400191467,1767182981873,10000.01,0.00012852,2]
[400191468,1767182981900,10000.01,0.00012852,2]
[400191469,1767182981927,10000.01,0.00012852,2]
[400191470,1767182981953,10000.01,0.00012852,2]
[400191471,1767182981979,10000.01,0.00012852,2]
[400191472,1767182982524,-305.40988178,0.00012852,2]
[400191473,1767182984611,-236.31408483,0.00012852,2]
[400191474,1767182987348,-233.76509833,0.00012852,2]
[400191475,1767182989352,-153.65871412,0.00012852,2]
[400191476,1767182991903,-188.83753862,0.00012852,2]
[400191477,1767182994100,-161.05259991,0.00012852,2]
[400191478,1767182997503,-193.66464589,0.00012852,2]
[400191479,1767183001255,300.0,0.00012851,2]
[400191480,1767183001292,1200.0,0.00012851,2]
[400191481,1767183001361,300.0,0.00012851,2]
[400191482,1767183001996,-335.22943184,0.00012852,2]
[400191483,1767183003294,255.0,0.00012852,2]
[400191484,1767183004860,-574.7156495,0.00012852,2]
[400191485,1767183006969,-257.45117937,0.00012852,2]
[400191486,1767183007955,1976.450204,7.945e-05,2]
[400191487,1767183008573,-315.51067724,0.00012852,2]
[400191488,1767183011147,-259.00579205,0.00012852,2]
[400191489,1767183012577,-203.86,0.00012852,2]
[400191490,1767183014531,-213.7111902,0.00012852,2]
[400191491,1767183016124,-182.34796988,0.00012852,2]
[400191492,1767183017569,-227.40672175,0.00012852,2]
[400191493,1767183021241,-201.15117636,0.00012852,2]
[400191494,1767183023907,-333.14415119,0.00012852,2]
[400191495,1767183031488,431.41363465,0.00012851,2]
[400191496,1767183031528,194.09168837,0.00012851,2]
[400191497,1767183031569,500.0,0.00012851,2]
[400191499,1767183031911,500.56664635,0.00012851,2]
[400191508,1767183032313,500.0,0.00012851,2]
[400191524,1767183032619,-500.0,0.00012852,2]
[400191526,1767183032632,-914302.12772829,0.00012852,2]
[400191528,1767183032642,-387.28583908,0.00012854,2]
[400191530,1767183032653,-177.28950991,0.00012855,2]
[400191531,1767183032663,-12700.1894209,0.00012942,2]
[400191532,1767183032673,-1200.0,0.00012945,2]
[400191533,1767183032684,-151.0,0.00012946,2]
[400191534,1767183032693,-151.0,0.00012946,2]
[400191535,1767183032704,-151.0,0.00012946,2]
[400191536,1767183032713,-151.0,0.00012946,2]
[400191537,1767183032723,-151.0,0.00012946,2]
[400191538,1767183032734,-151.0,0.00012946,2]
[400191539,1767183032744,-151.0,0.00012946,2]
[400191540,1767183032754,-151.0,0.00012946,2]
[400191541,1767183032764,-151.0,0.00012946,2]
[400191542,1767183032774,-151.0,0.00012946,2]
[400191543,1767183032784,-151.0,0.00012946,2]
[400191544,1767183032794,-151.0,0.00012946,2]
[400191545,1767183032804,-151.0,0.00012946,2]
[400191546,1767183032815,-151.0,0.00012946,2]
[400191547,1767183032825,-151.0,0.00012946,2]
[400191548,1767183032835,-194.76532127,0.00012951,2]
[400191549,1767183032845,-278.36328388,0.00012951,2]
[400191550,1767183032855,-387.24642354,0.00012951,2]
[400191551,1767183032864,-150.0,0.00012951,2]
[400191552,1767183032874,-43273.09713837,0.00012952,2]
[400191553,1767183032884,-1000.0,0.00012955,2]
[400191554,1767183032894,-4295.07,0.00013044,2]
[400191555,1767183032904,-9999.99,0.00013044,2]
[400191556,1767183032914,-942.03280809,0.00013304,2]
[400191557,1767183032924,-1371.08665974,0.00013304,2]
[400191558,1767183032933,-4295.07,0.00013465,2]
[400191559,1767183032943,-150.99,0.00013465,2]
[400191560,1767183032954,-29378.22,0.00013465,2]
[400191561,1767183032964,-500.0,0.00013698,2]
[400191562,1767183032974,-500.0,0.00013698,2]
[400191563,1767183032984,-500.0,0.00013698,2]
[400191564,1767183032993,-500.0,0.00013698,2]
[400191565,1767183033004,-500.0,0.00013698,2]
[400191566,1767183033014,-942.03280809,0.00013754,2]
[400191567,1767183033024,-1371.08665974,0.00013754,2]
[400191568,1767183033034,-1000.0,0.00013778,2]
[400191569,1767183033044,-1852.42,0.00013806,2]
[400191570,1767183033053,-150.0,0.00013843,2]
[400191571,1767183033063,-212.7132929,0.00013851,2]
[400191572,1767183033073,-4295.07,0.00013886,2]
[400191573,1767183033083,-255.0,0.00014052,2]
[400191574,1767183033093,-999.0,0.00014059,3]
[400191575,1767183033103,-2591.62,0.00014059,2]
[400191576,1767183033112,-420.0,0.00014095,2]
[400191577,1767183033122,-420.0,0.00014095,2]
[400191578,1767183033131,-166.66,0.00014132,2]
[400191579,1767183033141,-1680.0,0.00014136,2]
[400191580,1767183033151,-250.0,0.00014137,2]
[400191581,1767183033161,-183.33,0.00014137,2]
[400191582,1767183033171,-167.0,0.00014197,2]
[400191583,1767183033180,-942.03280809,0.00014203,2]
[400191584,1767183033190,-1371.08665974,0.00014203,2]
[400191585,1767183033200,-4295.07,0.00014306,2]
[400191586,1767183033210,-166.66,0.00014429,2]
[400191587,1767183033219,-8314.1,0.00014623,2]
[400191588,1767183033230,-1600.0,0.00014623,2]
[400191589,1767183033239,-942.03280809,0.00014653,2]
[400191590,1767183033249,-1371.08665974,0.00014653,2]
[400191591,1767183033259,-166.66,0.00014727,2]
[400191592,1767183033268,-4295.07,0.00014727,2]
[400191593,1767183033278,-177.2895099,0.00014878,2]
[400191594,1767183033288,-200.0,0.0001489,2]
[400191595,1767183033297,-207.4,0.0001489,2]
[400191596,1767183033307,-215.0738,0.0001489,2]
[400191597,1767183033317,-223.0315306,0.0001489,2]
[400191598,1767183033327,-231.28369723,0.0001489,2]
[400191599,1767183033337,-239.84119403,0.0001489,2]
[400191600,1767183033346,-248.71531821,0.0001489,2]
[400191601,1767183033356,-257.91778498,0.0001489,2]
[400191602,1767183033366,-7498.15,0.00014903,2]
[400191603,1767183033375,-218.3,0.00014933,2]
[400191604,1767183033385,-166.66,0.00015024,2]
[400191605,1767183033394,-942.03280809,0.00015102,2]
[400191606,1767183033405,-1371.08665974,0.00015102,2]
[400191607,1767183033415,-4295.07,0.00015148,2]
[400191608,1767183033425,-433.0,0.00015243,2]
[400191609,1767183033436,-150.0,0.00015288,2]
[400191610,1767183033447,-150.00000001,0.00015288,2]
[400191611,1767183033457,-150.0,0.00015288,2]
[400191612,1767183033471,-150.0,0.00015288,2]
[400191613,1767183033481,-150.0,0.00015288,2]
[400191614,1767183033490,-166.66,0.00015322,2]
[400191615,1767183033723,-587.0,0.0001546,2]
[400191616,1767183033733,-587.0,0.0001546,2]
[400191617,1767183033743,-1000.0,0.000155,2]
[400191618,1767183033754,-2351.0,0.0001555,2]
[400191619,1767183033764,-942.03280809,0.00015552,2]
[400191620,1767183033774,-1371.08665974,0.00015552,2]
[400191621,1767183033784,-4295.07,0.00015569,2]
[400191622,1767183033794,-166.66,0.00015619,2]
[400191623,1767183033803,-500.0,0.00015973,2]
[400191624,1767183033813,-500.0,0.00015973,2]
[400191625,1767183033824,-500.0,0.00015973,2]
[400191626,1767183033834,-178.74,0.00015978,2]
[400191627,1767183033844,-4295.07,0.00015989,2]
[400191628,1767183033854,-942.03280809,0.00016001,2]
[400191629,1767183033864,-1371.08665974,0.00016001,2]
[400191630,1767183033873,-1815.9,0.00016074,2]
[400191631,1767183033883,-1008.63357919,0.00016116,2]
[400191632,1767183033897,-8991.35642081,0.00016116,2]
[400191633,1767183033907,-250.0,0.00016143,2]
[400191634,1767183033917,-178.74,0.00016192,2]
[400191635,1767183033928,-465.64,0.00016192,2]
[400191636,1767183033938,-178.74,0.00016192,2]
[400191637,1767183033947,-301.76,0.00016192,2]
[400191638,1767183033958,-465.64,0.00016192,2]
[400191639,1767183033968,-178.74,0.00016192,2]
[400191640,1767183033978,-465.64,0.00016192,2]
[400191641,1767183033988,-178.74,0.00016192,2]
[400191642,1767183033998,-465.64,0.00016192,2]
[400191643,1767183034014,-168.0,0.00016346,2]
[400191644,1767183034024,-5000.0,0.000164,2]
[400191645,1767183034034,-328.39570891,0.00016438,2]
[400191646,1767183034044,-229.42780923,0.00016438,2]
[400191647,1767183034055,-231.43896469,0.00016438,2]
[400191648,1767183034065,-1896.9094563,0.00016438,2]
[400191649,1767183034075,-4561.3,0.00016438,2]
[400191650,1767183034085,-13437.33,0.00016438,2]
[400191651,1767183034096,-164.66,0.0001644,2]
[400191652,1767183034107,-164.66,0.0001644,2]
[400191653,1767183034116,-164.66,0.0001644,2]
[400191654,1767183034127,-942.03280809,0.00016451,2]
[400191655,1767183034137,-1371.08665974,0.00016451,2]
[400191656,1767183034148,-1600.0,0.00016451,2]
[400191657,1767183034158,-151.80413951,0.0001646,2]
[400191658,1767183034168,-1264.0,0.00016486,2]
[400191659,1767183034178,-913.0,0.00016486,2]
[400191660,1767183034188,-1199.0,0.00016486,2]
[400191661,1767183034198,-4812.0,0.00016486,2]
[400191662,1767183034207,-565.0,0.00016486,2]
[400191663,1767183034218,-5000.0,0.000165,2]
[400191664,1767183034227,-1000.0,0.00016521,2]
[400191665,1767183034237,-1000.0,0.00016521,2]
[400191666,1767183034247,-1000.0,0.00016521,2]
[400191667,1767183034258,-736.0,0.00016538,2]
[400191668,1767183034268,-150.0,0.00016559,2]
[400191669,1767183034277,-150.0,0.00016559,2]
[400191670,1767183034287,-150.0,0.00016559,2]
[400191671,1767183034298,-150.0,0.00016559,2]
[400191672,1767183034308,-150.0,0.00016559,2]
[400191673,1767183034319,-150.0,0.00016559,2]
[400191674,1767183034329,-150.0,0.00016559,2]
[400191675,1767183034339,-150.0,0.00016559,2]
[400191676,1767183034348,-150.0,0.00016559,2]
[400191677,1767183034363,-150.0,0.00016559,2]
[400191678,1767183034374,-1328.0,0.00016559,2]
[400191679,1767183034383,-613.0,0.00016559,2]
[400191680,1767183034393,-3462.0,0.00016559,2]
[400191681,1767183034403,-1528.0,0.00016559,2]
[400191682,1767183034413,-432.0,0.00016559,2]
[400191683,1767183034424,-329.26,0.00016559,2]
[400191684,1767183034434,-168.0,0.00016609,2]
[400191685,1767183034444,-168.0,0.00016621,2]
[400191686,1767183034455,-1076.28861037,0.0001666,2]
[400191687,1767183034469,-150.0,0.00016699,2]
[400191688,1767183034480,-500.0,0.00016699,2]
[400191689,1767183034490,-150.0,0.00016699,2]
[400191690,1767183034503,-150.0,0.00016699,2]
[400191691,1767183034513,-150.0,0.00016699,2]
[400191692,1767183034524,-150.0,0.00016699,2]
[400191693,1767183034535,-150.0,0.00016699,2]
[400191694,1767183034545,-150.0,0.00016699,2]
[400191695,1767183034556,-150.0,0.00016699,2]
[400191696,1767183034567,-150.0,0.00016699,2]
[400191697,1767183034577,-150.0,0.00016699,2]
[400191698,1767183034588,-150.0,0.00016699,2]
[400191699,1767183034598,-150.0,0.00016699,2]
[400191700,1767183034609,-209.80705324,0.00016699,2]
[400191701,1767183034620,-150.0,0.00016699,2]
[400191702,1767183034631,-154.54206526,0.00016699,2]
[400191703,1767183034642,-150.0,0.00016699,2]